Workbook

Sheet Cover and info
A1: Water Regulatory Accounting Template
A2: South East Water
A3: Submission for: | C3: 9
B7: Table of contents
C8: =ProfitAndLoss!A3 -> 1. Profit and loss
C9: =BalanceSheet!A3 -> 2. Balance sheet
C10: =CashFlow!A3 -> 3. Cash flow statement
C11: =Capex!A3 -> 4. Capital expenditure
C12: =CapexBreakdown!A3 -> 5. Capital expenditure breakdown
C13: ='Operating Costs'!A3 -> 6. Operating costs
C14: =+'Operating Costs Allocation'!A3 -> 7. Operating costs allocation
C15: =Revenue!A3 -> 8. Revenue
C16: =+Contributions!A3 -> 9. Contributions
C17: =Provisions!A3 -> 10. Provisions - OPTIONAL WORKSHEET, BUSINESS MAY COMPLETE AT THEIR DISCRETION
C18: =ThirdParty!A3 -> 11. Third party transactions (remains confidential) - OPTIONAL WORKSHEET, BUSINESS MAY COMPLETE AT THEIR DISCRETION
C19: =RelatedParty!A3 -> 12. Related party transactions (remains confidential) - OPTIONAL WORKSHEET, BUSINESS MAY COMPLETE AT THEIR DISCRETION
C20: =UnbundledSegments!A3 -> 13. Unbundled segments - OPTIONAL WORKSHEET, BUSINESS MAY COMPLETE AT THEIR DISCRETION
C21: ='Non-prescribed'!A3 -> 14. Non-prescribed services (remains confidential)
C22: =RollForward!A3 -> 15. Rolled-forward RAB - SHEET IS FORMULA DRIVEN
C25: These worksheets are optional / formula driven.
D65526: =+MATCH(A2,CA_Bus,0) -> 3

Sheet Summary
H3: Summary details | J3: =INDEX(LU_Years,Summary!SC_Date) -> 2022-23
H5: Prescribed Regulatory Expenditure
H6: Total Prescribed Operating Expenditure | J6: ='Operating Costs'!F24 -> 0
H7: Total Prescribed Capital Expenditure | J7: =Capex!C14 -> 0
H8: Total Prescribed Expenditure | J8: =SUM(J6:J7) -> 0
H10: Non prescribed expenditure
H11: Total Non prescribed Operating Expenditure | J11: ='Operating Costs'!F26 -> 0
H12: Total Non prescribed Capital Expenditure | J12: ='Non-prescribed'!F52 -> 0
H13: Total Non prescribed Expenditure | J13: =SUM(J11:J12) -> 0
H15: Contributions
H16: Government contributions | J16: =SUMIFS(Contributions!$G$11:$G$40,Contributions!$F$11:$F$40,"Will offset prices",Contributions!$E$11:$E$40,"Capital",Contributions!$C$11:$C$40,"Government") -> 0
H17: Customer contributions* | J17: =SUMIFS(Contributions!$G$11:$G$40,Contributions!$F$11:$F$40,"Will offset prices",Contributions!$E$11:$E$40,"Capital",Contributions!$C$11:$C$40,"Customer") -> 0
H18: Total Capital contributions | J18: =SUM(J16:J17) -> 0
H20: *New Customer contributions | J20: =Revenue!$F$18 -> 0
H21: *Other Customer contributions | J21: =SUMIFS(Contributions!$G$11:$G$40,Contributions!$F$11:$F$40,"Will offset prices",Contributions!$E$11:$E$40,"Capital",Contributions!$C$11:$C$40,"Customer")-J20 -> 0
H22: Total Customer contributions | J22: =SUM(J20:J21) -> 0
H24: Other Revenue
H25: Gifted assets | J25: =Revenue!$F$27 -> 0
H26: Proceeds from prescribed asset disposal | J26: =Revenue!$F$24 -> 0
H27: Total Other Revenue | J27: =SUM(J25:J26) -> 0

Sheet ProfitAndLoss
A1: =+'Cover and info'!A1 -> Water Regulatory Accounting Template
A2: ='Cover and info'!A2 -> South East Water
A3: 1. Profit and loss
A4: Contents
C8: Overview of Stat Accounts | D8: Overview of Stat Accounts | F8: Relevant notes in Annual Report
C9: =INDEX(LU_Years,[0]!SC_Date) -> 2022-23 | D9: =INDEX(LU_Years,[0]!SC_Date-1) -> 2021-22
C10: $'000 | D10: $'000
B12: REVENUE
B13: Revenue
B14: Investment Income
B15: Net profit from sale of assets | C15: =IF(C38>=0,C38,0) -> 0 | D15: =IF(D38>=0,D38,0) -> 0 | G15: this line links from row 37 (Net profit/(loss) on disposal), if there is a profit
B16: Contributions
B17: Total Revenue | C17: =+SUM(C13:C16) -> 0 | D17: =SUM(D13:D16) -> 0
B19: EXPENSES
B20: Operating Expenditure - cash only | C20: ='Operating Costs'!F24 -> 0
B21: Operating Expenditure-Non-cash | C21: =C53 -> 0
B22: Depreciation
B23: Bad debts
B24: Borrowing Costs
B25: Net loss from sale of assets | C25: =IF(C38<0,-C38,0) -> 0 | D25: =IF(D38<0,-D38,0) -> 0 | G25: this line links from row 37 (Net profit/(loss) on disposal), if there is a loss
B26: Total Expenses | C26: =+SUM(C20:C25) -> 0 | D26: =+SUM(D20:D25) -> 0
B28: Profit before Tax | C28: =+C17-C26 -> 0 | D28: =+D17-D26 -> 0
B29: Income Tax Expense
B30: Profit after Tax | C30: =+C28-C29 -> 0 | D30: =+D28-D29 -> 0
B32: Dividend
B33: Dividend payout ratio | C33: =IFERROR(C32/C30,"-") -> - | D33: =IFERROR(D32/D30,"-") -> -
B35: Schedule 1 - sale of assets
B36: Proceeds from asset sales
B37: WDV of assets disposed
B38: Net profit/(loss) on disposal | C38: =+C36-C37 -> 0 | D38: =+D36-D37 -> 0
B41: Schedule 2 - Non-cash items*
B43: * excluding bad debts and depreciation
B44: Economic flows/benefits
B45: Accruals (non time based/non cash only)
B46: doubtful debts
B47: provisions (non time based/non cash only)
B53: Total Statutory Non-cash amount | C53: =+SUM(C44:C52) -> 0
B57: Schedule 3 - Operating expenditure
B58: Operating expenditure - statutory accounts | C58: =+C20 -> 0 | G58: this line links from row 20 (Operating Expenditure)
B59: Operating expenditure - regulatory accounts | C59: =+'Operating Costs'!F28 -> 0 | G59: this line links from cell F28 (total opex) in the Operating Costs template
B60: Variance | C60: =C58-C59 -> 0
B62: Variance comprised of
B72: Total variances | C72: =+SUM(C63:C71) -> 0
B75: Schedule 4 - Revenue
B76: Revenue - statutory accounts | C76: =+C13+C14+C16+C36 -> 0 | G76: sum of above revenue (incl. proceeds from asset sales, not profit on sale)
B77: Revenue - regulatory accounts | C77: =Revenue!F37 -> 0 | G77: this line links from cell F37 (total revenue) in the Revenue template
B78: Variance | C78: =C76-C77 -> 0
B80: Variance comprised of
B90: Total variances | C90: =+SUM(C81:C89) -> 0

Sheet BalanceSheet
A1: =+'Cover and info'!A1 -> Water Regulatory Accounting Template
A2: ='Cover and info'!A2 -> South East Water
A3: 2. Balance sheet
A4: Contents
C8: Overview of Stat Accounts | D8: Overview of Stat Accounts | F8: Relevant notes in Annual Report
C9: =INDEX(LU_Years,[0]!SC_Date) -> 2022-23 | D9: =INDEX(LU_Years,[0]!SC_Date-1) -> 2021-22
C10: $'000 | D10: $'000
B12: CURRENT ASSETS
B13: Cash
B14: Receivables
B15: Other
B16: Total Current Assets | C16: =+SUM(C13:C15) -> 0 | D16: =+SUM(D13:D15) -> 0
B18: NON-CURRENT ASSETS
B19: Property, Plant and Equipment
B20: Deferred Tax assets
B21: Receivables
B22: Other
B23: Total Non-Current Assets | C23: =+SUM(C19:C22) -> 0 | D23: =+SUM(D19:D22) -> 0
B25: TOTAL ASSETS | C25: =+C16+C23 -> 0 | D25: =+D16+D23 -> 0
B27: CURRENT LIABILITIES
B28: Payables
B29: Interest-bearing liabilities
B30: Current tax liabilities
B31: Provisions
B32: Other
B33: Total Current Liabilities | C33: =+SUM(C28:C32) -> 0 | D33: =+SUM(D28:D32) -> 0
B35: NON-CURRENT LIABILITIES
B36: Payables
B37: Interest-bearing liabilities
B38: Deferred Tax Liabilities
B39: Provisions
B40: Other
B41: Total Non-Current Liabilities | C41: =+SUM(C36:C40) -> 0 | D41: =+SUM(D36:D40) -> 0
B43: TOTAL LIABILITIES | C43: =+C33+C41 -> 0 | D43: =+D33+D41 -> 0
B45: NET ASSETS /(LIABILITIES) | C45: =+C25-C43 -> 0 | D45: =+D25-D43 -> 0
B47: EQUITY
B48: Contributed equity
B49: Reserves
B50: Retained profits
B52: TOTAL EQUITY | C52: =+SUM(C48:C51) -> 0 | D52: =+SUM(D48:D51) -> 0
B54: Explanatory notes | C54: =+IF(ROUND(C52,0)<ROUND(C45,0),CONCATENATE("Net Assets > Equity by ",DOLLAR(C45-C52,0),"k"),IF(ROUND(C52,0)>ROUND(C45,0),CONCATENATE("Equity > Net Assets By ",DOLLAR(C52-C45,0),"k"),"")) ->  | D54: =+IF(ROUND(D52,0)<ROUND(D45,0),CONCATENATE("Net Assets > Equity by ",DOLLAR(D45-D52,0),"k"),IF(ROUND(D52,0)>ROUND(D45,0),CONCATENATE("Equity > Net Assets By ",DOLLAR(D52-D45,0),"k"),"")) -> 
B56: Item description | C56: Value $'000 | D56: Annual Report note

Sheet CashFlow
A1: =+'Cover and info'!A1 -> Water Regulatory Accounting Template
A2: ='Cover and info'!A2 -> South East Water
A3: 3. Cash flow statement
A4: Contents
C8: Overview of Stat Accounts | D8: Overview of Stat Accounts | F8: Relevant notes in Annual Report
C9: =INDEX(LU_Years,[0]!SC_Date) -> 2022-23 | D9: =INDEX(LU_Years,[0]!SC_Date-1) -> 2021-22
C10: $'000 | D10: $'000
B12: CASH FLOWS FROM OPERATING ACTIVITIES
B13: Receipts
B14: Payments
B15: Net Operating Cash Flow | C15: =+C13-C14 -> 0 | D15: =+D13-D14 -> 0
B17: CASH FLOWS FROM INVESTING ACTIVITIES
B18: Receipts
B19: Payments
B20: Net Investing Cash Flow | C20: =+C18-C19 -> 0 | D20: =+D18-D19 -> 0
B22: CASH FLOWS FROM FINANCING ACTIVITIES
B23: Receipts
B24: Payments
B25: Net Financing Cash Flow | C25: =+C23-C24 -> 0 | D25: =+D23-D24 -> 0
B27: Cash at the Beginning of the Financial Year | C27: =D29 -> 0
B28: Net Increase/(Decrease) in Cash Held | C28: =C15+C20+C25 -> 0 | D28: =D15+D20+D25 -> 0
B29: Cash at the End of the Financial Year | C29: =C27+C28 -> 0 | D29: =D27+D28 -> 0
B31: Explanatory notes
B33: Item description | C33: Value $'000 | D33: Annual Report note

Sheet Capex
A1: =+'Cover and info'!A1 -> Water Regulatory Accounting Template
A2: ='Cover and info'!A2 -> South East Water
A3: 4. Capital expenditure
A4: Contents
F7: Relevant notes in Annual Report
C8: =INDEX(LU_Years,[0]!SC_Date) -> 2022-23 | D8: =INDEX(LU_Years,[0]!SC_Date-1) -> 2021-22
C9: $'000 | D9: $'000
B11: Additions as per statutory accounts
B12: Adjustments for non-prescribed services*
B13: Accounting adjustments | C13: =C25 -> 0 | G13: this line links from total accounting adjustments, below
B14: Prescribed services capital expenditure | C14: =+SUM(C11:C13) -> 0 | D14: =+SUM(D11:D13) -> 0
B16: * adjustments for non-prescribed services should be able to be reconciled to non-prescribed sheet
B18: Summary of accounting adjustments
B25: Total accounting adjustments | C25: =+SUM(C19:C24) -> 0
B28: Prescribed services amount should include contributions, but not gifted assets.
B29: Any gifted assets included in the audited statutory accounts should be reversed as an accounting adjustment
B31: Explanatory notes | I31: IT Capitalised adjustments
B33: Item description | C33: Value $'000 | D33: Comment | G33: Annual Report note | I33: Amortised Items | J33: Written down book value $'000 | K33: Years amortised
J49: =SUM(J34:J48) -> 0

Sheet CapexBreakdown
A1: =+'Cover and info'!A1 -> Water Regulatory Accounting Template
A2: ='Cover and info'!A2 -> South East Water
A3: 5. Capital expenditure breakdown
A4: Contents
C8: Water | D8: Sewerage & trade waste | E8: Recycled water | F8: Total | G8: Total
C9: =INDEX(LU_Years,[0]!SC_Date) -> 2022-23 | D9: =INDEX(LU_Years,[0]!SC_Date) -> 2022-23 | E9: =INDEX(LU_Years,[0]!SC_Date) -> 2022-23 | F9: =INDEX(LU_Years,[0]!SC_Date) -> 2022-23 | G9: =INDEX(LU_Years,[0]!SC_Date-1) -> 2021-22
C10: $'000 | D10: $'000 | E10: $'000 | F10: $'000 | G10: $'000
B11: COST DRIVERS
B12: Growth | F12: =+SUM(C12:E12) -> 0
B13: Renewal of existing infrastructure | F13: =+SUM(C13:E13) -> 0
B14: Improvement in service | F14: =+SUM(C14:E14) -> 0
B15: Compliance | F15: =+SUM(C15:E15) -> 0
B16: Total Additions | C16: =+SUM(C12:C15) -> 0 | D16: =+SUM(D12:D15) -> 0 | E16: =+SUM(E12:E15) -> 0 | F16: =+SUM(F12:F15) -> 0 | G16: =+SUM(G12:G15) -> 0
C18: =+C8 -> Water | D18: =+D8 -> Sewerage & trade waste | E18: =+E8 -> Recycled water | F18: =+F8 -> Total | G18: =+G8 -> Total
C19: =INDEX(LU_Years,[0]!SC_Date) -> 2022-23 | D19: =INDEX(LU_Years,[0]!SC_Date) -> 2022-23 | E19: =INDEX(LU_Years,[0]!SC_Date) -> 2022-23 | F19: =INDEX(LU_Years,[0]!SC_Date) -> 2022-23 | G19: =INDEX(LU_Years,[0]!SC_Date-1) -> 2021-22
C20: $'000 | D20: $'000 | E20: $'000 | F20: $'000 | G20: $'000
B21: ASSET CATEGORIES
B22: Headworks | F22: =+SUM(C22:E22) -> 0
B23: Permanent water entitlements | F23: =+SUM(C23:E23) -> 0
B24: Pipelines/network | F24: =+SUM(C24:E24) -> 0
B25: Treatment | F25: =+SUM(C25:E25) -> 0
B26: Corporate | F26: =+SUM(C26:E26) -> 0
B27: Total Additions | C27: =+SUM(C22:C26) -> 0 | D27: =+SUM(D22:D26) -> 0 | E27: =+SUM(E22:E26) -> 0 | F27: =+SUM(F22:F26) -> 0 | G27: =+SUM(G22:G26) -> 0 | I27: =+IF(ROUND(F27,0)=0,"",IF(ROUND(F27,0)>ROUND(Capex!C14,0),CONCATENATE("Additions by Asset Category exceeds Prescribed Services Capex by ",DOLLAR(F27-Capex!C14,0),"k"),IF(ROUND(F27,0)<ROUND(Capex!C14,0),CONCATENATE("Precribed Services Capex exceeds Additions by Asset Category by ",DOLLAR(Capex!C14-F27,0),"k"),""))) -> 
B30: Explanatory notes
B32: Item description | C32: Value $'000 | D32: Basis of allocation (incl. % split) | G32: Reason for choosing this basis | J32: Annual Report note

Sheet Operating Costs
A1: =+'Cover and info'!A1 -> Water Regulatory Accounting Template
A2: ='Cover and info'!A2 -> South East Water
A3: 6. Operating costs
A4: Contents
C8: Water | D8: Sewerage & trade waste | E8: Recycled water | F8: TOTAL | G8: TOTAL
C9: =INDEX(LU_Years,[0]!SC_Date) -> 2022-23 | D9: =INDEX(LU_Years,[0]!SC_Date) -> 2022-23 | E9: =INDEX(LU_Years,[0]!SC_Date) -> 2022-23 | F9: =INDEX(LU_Years,[0]!SC_Date) -> 2022-23 | G9: =INDEX(LU_Years,[0]!SC_Date-1) -> 2021-22
C10: $'000 | D10: $'000 | E10: $'000 | F10: $'000 | G10: $'000
B11: ACTIVITY AREA
B12: Operations and Maintenance | F12: =+SUM(C12:E12) -> 0
B13: Bulk charges | F13: =+SUM(C13:E13) -> 0
B14: Treatment | F14: =+SUM(C14:E14) -> 0
B15: Customer Service and billing | F15: 0
B16: GSL Payments | F16: 0
B17: Licence Fees | C17: =C37 -> 0 | D17: =D37 -> 0 | E17: =E37 -> 0 | F17: 0 | H17: this line links from Schedule 1, below
B18: Corporate | F18: 0
B19: Environmental contribution | F19: 0
B20: Purchase of temporary water entitlements | F20: 0
B21: Water Conservation | F21: 0
B22: Other operating expenditure | F22: 0
B24: Total prescribed regulatory operating expenditure | C24: =SUM(C12:C22) -> 0 | D24: =SUM(D12:D22) -> 0 | E24: =SUM(E12:E22) -> 0 | F24: =SUM(F12:F22) -> 0 | G24: =SUM(G12:G22) -> 0
B25: Statutory Non-cash items | F25: =SUM(C25:E25) -> 0 | G25: 0
B26: Total non-prescribed operating expenditure (incl. indirect allocation) | F26: ='Non-prescribed'!E52 -> 0 | H26: Cell F26 links from cell E52 on the non-prescribed sheet (opex)
B28: Total operating expenditure as per statutory accounts | F28: =+SUM(F24:F27) -> 0 | G28: =+SUM(G24:G27) -> 0
C31: Water | D31: Sewerage & trade waste | E31: Recycled water | F31: TOTAL
C32: =INDEX(LU_Years,[0]!SC_Date) -> 2022-23 | D32: =INDEX(LU_Years,[0]!SC_Date) -> 2022-23 | E32: =INDEX(LU_Years,[0]!SC_Date) -> 2022-23 | F32: =INDEX(LU_Years,[0]!SC_Date) -> 2022-23
B33: Schedule 1 Licence fees | C33: $'000 | D33: $'000 | E33: $'000 | F33: $'000
B34: Essential Services Commission | F34: =+SUM(C34:E34) -> 0
B35: Environment Protection Authority | F35: =+SUM(C35:E35) -> 0
B36: Department of Human Services | F36: =+SUM(C36:E36) -> 0
B37: Total licence fees | C37: =+SUM(C34:C36) -> 0 | D37: =+SUM(D34:D36) -> 0 | E37: =+SUM(E34:E36) -> 0 | F37: =+SUM(F34:F36) -> 0
B40: Explanatory notes
B42: Item description | C42: Value $'000 | D42: Basis of allocation (incl. % split) | G42: Reason for choosing this basis | J42: Annual Report note

Sheet Operating Costs Allocation
A1: =+'Cover and info'!A1 -> Water Regulatory Accounting Template
A2: ='Cover and info'!A2 -> South East Water
A3: 7. Operating costs allocation
A4: Contents
C7: Labour (ordinary) | D7: Plant and materials | E7: Contractors | F7: Electricity | G7: Greenhouse gas offsets | H7: Chemicals | I7: Water conservation | J7: Vehicle fleet running costs | K7: IT | L7: Sub total | M7: Other trial balance accounts | N7: Total as per trial balance
C8: =INDEX(LU_Years,[0]!SC_Date) -> 2022-23 | D8: =INDEX(LU_Years,[0]!SC_Date) -> 2022-23 | E8: =INDEX(LU_Years,[0]!SC_Date) -> 2022-23 | F8: =INDEX(LU_Years,[0]!SC_Date) -> 2022-23 | G8: =INDEX(LU_Years,[0]!SC_Date) -> 2022-23 | H8: =INDEX(LU_Years,[0]!SC_Date) -> 2022-23 | I8: =INDEX(LU_Years,[0]!SC_Date) -> 2022-23 | J8: =INDEX(LU_Years,[0]!SC_Date) -> 2022-23 | K8: =INDEX(LU_Years,[0]!SC_Date) -> 2022-23 | L8: =INDEX(LU_Years,[0]!SC_Date) -> 2022-23 | M8: =INDEX(LU_Years,[0]!SC_Date) -> 2022-23 | N8: =INDEX(LU_Years,[0]!SC_Date) -> 2022-23
C9: $'000 | D9: $'000 | E9: $'000 | F9: $'000 | G9: $'000 | H9: $'000 | I9: $'000 | J9: $'000 | K9: $'000 | L9: $'000 | M9: $'000 | N9: $'000
B10: Prescribed operating expenditure
B11: Operations and Maintenance | L11: =SUM(C11:K11) -> 0 | N11: =+SUM(L11:M11) -> 0
B12: Bulk charges | L12: =SUM(C12:K12) -> 0 | N12: 0
B13: Treatment | L13: 0 | N13: 0
B14: Customer Service and billing | L14: 0 | N14: 0
B15: GSL Payments | L15: 0 | N15: 0
B16: Licence Fees | L16: 0 | N16: 0
B17: Corporate | L17: 0 | N17: 0
B18: Environmental levy | L18: 0 | N18: 0
B19: Water Conservation | L19: 0 | N19: 0
B20: Other operating expenditure | L20: 0 | N20: 0
B22: Non-prescribed/non cash operating expenditure | L22: =SUM(C22:K22) -> 0 | N22: 0
B24: Total operating expenditure | C24: =+SUM(C11:C22) -> 0 | D24: =+SUM(D11:D22) -> 0 | E24: 0 | F24: 0 | G24: 0 | H24: 0 | I24: =+SUM(I11:I22) -> 0 | J24: 0 | K24: =+SUM(K11:K22) -> 0 | L24: =+SUM(L11:L22) -> 0 | M24: =+SUM(M11:M22) -> 0 | N24: 0
B26: High level account/ledger codes used (e.g. 6101, 6102, 6140, etc, for each expenditure category)
B29: Explanatory notes - businesses should provide additional explanation of significant one-off expenditure items and cost allocations where necessary
B31: Explanatory notes
B33: Item description | C33: Value $'000 | D33: Basis of allocation (incl. % split) | G33: Reason for choosing this basis | J33: Annual Report note

Sheet Revenue
A1: =+'Cover and info'!A1 -> Water Regulatory Accounting Template
A2: ='Cover and info'!A2 -> South East Water
A3: 8. Revenue
A4: Contents
C8: Water | D8: Sewerage & trade waste | E8: Recycled water | F8: TOTAL | G8: TOTAL | I8: High level account/ledger codes used for each revenue category
C9: =INDEX(LU_Years,[0]!SC_Date) -> 2022-23 | D9: =INDEX(LU_Years,[0]!SC_Date) -> 2022-23 | E9: =INDEX(LU_Years,[0]!SC_Date) -> 2022-23 | F9: =INDEX(LU_Years,[0]!SC_Date) -> 2022-23 | G9: =INDEX(LU_Years,[0]!SC_Date-1) -> 2021-22
C10: $'000 | D10: $'000 | E10: $'000 | F10: $'000 | G10: $'000
B11: Revenue from determined prices or pricing principles
B12: Residential Services | F12: =+SUM(C12:E12) -> 0
B13: Non-residential Services | F13: =+SUM(C13:E13) -> 0
B14: Non-scheduled Services - Schedule 4 | C14: =C113 -> 0 | D14: =D113 -> 0 | E14: =E113 -> 0 | F14: 0
B15: Trade waste Services | F15: 0
B16: Core Miscellaneous Services - Schedule 2 | C16: =C65 -> 0 | D16: =D65 -> 0 | E16: =E65 -> 0 | F16: 0
B17: Bulk Water and Sewerage Services | F17: 0
B18: New Customer Contributions | F18: 0
B19: Total revenue from determined prices or pricing principles | C19: =+SUM(C12:C18) -> 0 | D19: =+SUM(D12:D18) -> 0 | E19: =+SUM(E12:E18) -> 0 | F19: =+SUM(F12:F18) -> 0 | G19: =+SUM(G12:G18) -> 0
B21: Revenue from other sources
B22: Revenue that will offset prices/revenue requirement
B23: Proceeds from sale of water entitlements | F23: =+SUM(C23:E23) -> 0
B24: Proceeds from asset disposal (to be deducted from RAB) | F24: =+SUM(C24:E24) -> 0
B25: Government Contributions - Operating | F25: =+SUM(C25:E25) -> 0
B26: Government Contributions - Capital | F26: =+SUM(C26:E26) -> 0
B27: Gifted Assets | F27: =+SUM(C27:E27) -> 0
B28: Sub-total | C28: =+SUM(C23:C27) -> 0 | D28: =+SUM(D23:D27) -> 0 | E28: =+SUM(E23:E27) -> 0 | F28: =+SUM(F23:F27) -> 0 | G28: =+SUM(G23:G27) -> 0
B30: Revenue that will not offset prices/revenue requirement
B31: Proceeds from the sale of assets (with no impact on RAB)
B32: Other non-prescribed services | F32: ='Non-prescribed'!D52 -> 0 | H32: this line links from cell D52 on the non-prescribed sheet (revenue)
B33: Sub-total | F33: =SUM(F31:F32) -> 0 | G33: =SUM(G31:G32) -> 0
B35: Total revenue from other revenue sources | F35: =+F33+F28 -> 0 | G35: =+G33+G28 -> 0
B37: TOTAL REVENUE | F37: =F19+F35 -> 0 | G37: =G19+G35 -> 0
C39: Water | D39: Sewerage & trade waste | E39: Recycled water | F39: TOTAL
C40: =INDEX(LU_Years,[0]!SC_Date) -> 2022-23 | D40: =INDEX(LU_Years,[0]!SC_Date) -> 2022-23 | E40: =INDEX(LU_Years,[0]!SC_Date) -> 2022-23 | F40: =INDEX(LU_Years,[0]!SC_Date) -> 2022-23
B41: Core Miscellaneous Services - Schedule 2 | C41: $'000 | D41: $'000 | E41: $'000 | F41: $'000
F42: =SUM(C42:E42) -> 0
F43: =SUM(C43:E43) -> 0
F44: 0
F45: 0
F46: 0
F47: 0
F48: 0
F49: 0
F50: 0
F51: 0
F52: 0
F53: 0
F54: 0
F55: 0
F56: 0
F57: 0
F58: 0
F59: 0
F60: 0
F61: 0
F62: 0
F63: 0
F64: 0
C65: =SUM(C42:C64) -> 0 | D65: =SUM(D42:D64) -> 0 | E65: =SUM(E42:E64) -> 0 | F65: =SUM(F42:F64) -> 0
C68: Water | D68: Sewerage & trade waste | E68: Recycled water | F68: TOTAL
C69: =INDEX(LU_Years,[0]!SC_Date) -> 2022-23 | D69: =INDEX(LU_Years,[0]!SC_Date) -> 2022-23 | E69: =INDEX(LU_Years,[0]!SC_Date) -> 2022-23 | F69: =INDEX(LU_Years,[0]!SC_Date) -> 2022-23
C70: $'000 | D70: $'000 | E70: $'000 | F70: $'000
F71: =SUM(C71:E71) -> 0
F72: 0
F73: 0
F74: 0
F75: 0
F76: 0
F77: 0
F78: 0
F79: 0
F80: 0
F81: 0
F82: 0
F83: 0
F84: 0
F85: 0
F86: 0
F87: 0
F88: 0
F89: 0
F90: 0
F91: 0
F92: 0
F93: 0
F94: 0
F95: 0
F96: 0
F97: 0
F98: 0
F99: 0
F100: 0
F101: 0
F102: 0
F103: 0
F104: 0
F105: 0
F106: 0
F107: 0
F108: 0
F109: =SUM(C109:E109) -> 0
F110: =SUM(C110:E110) -> 0
F111: =SUM(C111:E111) -> 0
F112: =SUM(C112:E112) -> 0
B113: Total revenue from non-scheduled services | C113: =+SUM(C71:C112) -> 0 | D113: =+SUM(D71:D112) -> 0 | E113: =+SUM(E71:E112) -> 0 | F113: =+SUM(F71:F112) -> 0
B116: Explanatory notes
B118: Item description | C118: Value $'000 | D118: Basis of allocation (incl. % split) | E118: Reason for choosing this basis | H118: Annual Report note

Sheet Contributions
A1: =+'Cover and info'!A1 -> Water Regulatory Accounting Template
A2: ='Cover and info'!A2 -> South East Water
A3: 9. Contributions
A4: Contents
J5: Government | K5: Capital | L5: Will offset prices | M5: Revenue
J6: Customer | K6: Operating | L6: Will not offset prices | M6: Equity
K7: Gifted Asset
C8: Government or customer contribution | D8: Accounting treatment (eg booked as revenue or equity) | E8: Capital, Operating contribution or Gifted Asset | F8: Will offset prices/Will not offset prices | G8: Contribution amount
G9: $'000
B10: Reason for contribution | I10: IMPORTANT: read this note before completing this tab
I12: If contributions (customer or/and government, excluding gifted assets) are to be included in the RAB, then the following conditions apply:
I14: (1) Capital, Operating contribution or Gifted Asset => this category must be selected as "Capital"
I16: (2) Will offset prices/Will not offset prices => this category must be selected as "Will offset prices"
I18: As a sanity check, refer to the Rollforward tab, to ensure that the closing RAB values accurately reflects the correct RAB position.
B42: TOTAL CONTRIBUTIONS | G42: =+SUM(G11:G41) -> 0
B43: Comprised of:
B44: Capital | G44: =+SUMIF($E$11:$E$40,B44,$G$11:$G$40) -> 0
B45: Operating | G45: =+SUMIF($E$11:$E$40,B45,$G$11:$G$40) -> 0
F47: Check with other templates - All revenue contributions should equal
F48: Contributions in revenue template | G48: =Revenue!F18+Revenue!F25+Revenue!F26+Revenue!F27 -> 0
F49: Contributions in profit and loss template | G49: =ProfitAndLoss!C16 -> 0
F50: Total contributions less equity contributions | G50: =+SUMIF($D$11:$D$40,M5,$G$11:$G$40) -> 0

Sheet Provisions
A1: =+'Cover and info'!A1 -> Water Regulatory Accounting Template
A2: ='Cover and info'!A2 -> South East Water
A3: 10. Provisions - OPTIONAL WORKSHEET, BUSINESS MAY COMPLETE AT THEIR DISCRETION
A4: Contents
C8: =INDEX(LU_Years,[0]!SC_Date) -> 2022-23 | D8: =INDEX(LU_Years,[0]!SC_Date-1) -> 2021-22 | E8: =INDEX(LU_Years,[0]!SC_Date-2) -> 2020-21 | F8: =INDEX(LU_Years,[0]!SC_Date-3) -> 2019-20
C9: $'000 | D9: $'000 | E9: $'000 | F9: $'000
A11: 1 | B11: CURRENT
A12: =+A11+1 -> 2 | B12: Employee entitlements - annual leave
B13: Employee entitlements - long service leave
B14: Employee entitlements - other
B15: Insurance
B16: Other
B17: Total Current Provisions | C17: =+SUM(C12:C16) -> 0 | D17: =+SUM(D12:D16) -> 0 | E17: =+SUM(E12:E16) -> 0 | F17: =+SUM(F12:F16) -> 0
B19: NON-CURRENT
B20: Employee entitlements - annual leave
B21: Employee entitlements - long service leave
B22: Employee entitlements - other
B23: Insurance
B24: Other
B25: Total Non-Current Provisions | C25: =+SUM(C20:C24) -> 0 | D25: =+SUM(D20:D24) -> 0 | E25: =+SUM(E20:E24) -> 0 | F25: =+SUM(F20:F24) -> 0
B27: BAD AND DOUBTFUL DEBTS
B28: Current bad and doubtful debts
B32: Schedule 1 - current provisions
B33: Accounts included in Other category
B46: Schedule 2 - non-current provisions
B47: Accounts included in Other category

Sheet ThirdParty
A1: =+'Cover and info'!A1 -> Water Regulatory Accounting Template
A2: ='Cover and info'!A2 -> South East Water
A3: 11. Third party transactions (remains confidential) - OPTIONAL WORKSHEET, BUSINESS MAY COMPLETE AT THEIR DISCRETION
A4: Contents
B8: Name of Third Party Entity | C8: Service provided | D8: Value $'000 | E8: Description of how the consideration was determined | F8: Description of how this consideration is reflected in the regulatory accounts
C23: Total | D23: =+SUM(D9:D22) -> 0

Sheet RelatedParty
A1: =+'Cover and info'!A1 -> Water Regulatory Accounting Template
A2: ='Cover and info'!A2 -> South East Water
A3: 12. Related party transactions (remains confidential) - OPTIONAL WORKSHEET, BUSINESS MAY COMPLETE AT THEIR DISCRETION
A4: Contents
B8: Name of Related Party | C8: Service provided | D8: Value $'000 | E8: Description of how the consideration was determined | F8: Description of how this consideration is reflected in the regulatory accounts
C23: Total | D23: =+SUM(D9:D22) -> 0

Sheet UnbundledSegments
A1: =+'Cover and info'!A1 -> Water Regulatory Accounting Template
A2: ='Cover and info'!A2 -> South East Water
A3: 13. Unbundled segments - OPTIONAL WORKSHEET, BUSINESS MAY COMPLETE AT THEIR DISCRETION
A4: Contents
C8: Water - Collection and Storage | D8: Water - Treatment | E8: Water - Transport | F8: Sewage - Treatment | G8: Sewage - Transport | H8: Recycled water | I8: TOTAL
C9: $'000 | D9: $'000 | E9: $'000 | F9: $'000 | G9: $'000 | H9: $'000 | I9: $'000 | J9: Check with other templates
B11: Revenue (excl. revenue from disposals) | I11: =+SUM(C11:H11) -> 0 | J11: =Revenue!F37-Revenue!F33-Revenue!F24 -> 0
B12: Additions | I12: 0 | J12: =Capex!C14 -> 0
B13: Operating Expenditure | I13: 0 | J13: ='Operating Costs'!F24 -> 0
B14: New Customer Contributions | I14: 0 | J14: =Revenue!F18 -> 0
B15: Government Contributions | I15: 0 | J15: =Revenue!F25+Revenue!F26 -> 0
B16: Gifted Assets | I16: 0 | J16: =Revenue!F27 -> 0
B17: Proceeds from Asset disposal (to be deducted from RAB) | I17: 0 | J17: =Revenue!F24 -> 0
B22: Explanatory notes
B24: Item description | C24: Value $'000 | D24: Basis of allocation (incl. % split) | G24: Reason for choosing this basis | J24: Annual Report note

Sheet Non-prescribed
A1: =+'Cover and info'!A1 -> Water Regulatory Accounting Template
A2: ='Cover and info'!A2 -> South East Water
A3: 14. Non-prescribed services (remains confidential)
A4: Contents
B8: Service Name | C8: Description | D8: Revenue | E8: Operating expenditure | F8: Capital expenditure | G8: High level account/ledger codes used for each non-prescribed service
D9: =INDEX(LU_Years,[0]!SC_Date) -> 2022-23 | E9: =INDEX(LU_Years,[0]!SC_Date) -> 2022-23 | F9: =INDEX(LU_Years,[0]!SC_Date) -> 2022-23
D10: $'000 | E10: $'000 | F10: $'000
D52: =SUM(D12:D51) -> 0 | E52: =SUM(E12:E51) -> 0 | F52: =SUM(F12:F51) -> 0
B55: Explanatory notes - Businesses to provide further explanation of how indirect costs/revenues were allocated to non-prescribed services.
B57: Item description | C57: Value $'000 | D57: Basis of allocation (incl. % split) | E57: Reason for choosing this basis | H57: Annual Report note

Sheet RollForward
A1: =+'Cover and info'!A1 -> Water Regulatory Accounting Template
A2: ='Cover and info'!A2 -> South East Water
A3: 15. Rolled-forward RAB - SHEET IS FORMULA DRIVEN
A4: Contents
B7: =CONCATENATE("Figures expressed in $'000, ",LEFT(ProfitAndLoss!C9,2),RIGHT(ProfitAndLoss!C9,2)," dollars") -> Figures expressed in $'000, 2023 dollars
G8: 2004-05 | H8: 2005-06 | I8: 2006-07 | J8: 2007-08 | K8: 2008-09 | L8: 2009-10 | M8: 2010-11 | N8: 2011-12 | O8: 2012-13 | P8: 2013-14 | Q8: 2014-15 | R8: 2015-16 | S8: 2016-17 | T8: 2017-18 | U8: 2018-19 | V8: 2019-20 | W8: 2020-21 | X8: 2021-22 | Y8: 2022-23 | AA8: Legend:
AB9: sourced from 2013 final decision model and inflated
B10: Opening Asset Value | Y10: =X15 ->  | AB10: sourced from 2018 final decision model and inflated
B11: plus Capital Expenditure | Y11: =IFERROR(Capex!$C$14/Y23,"") -> 0 | AB11: sourced from 2023 final decision model and inflated
B12: less Capital Contributions | Y12: =IFERROR(-(SUMPRODUCT((Contributions!$E$11:$E$40="Capital")*(Contributions!$F$11:$F$40="Will offset prices")*(Contributions!$G$11:$G$40)))/Y23,"") -> 0 | AB12: actuals from current period
B13: less Depreciation (forecast)
B14: less Disposals | Y14: =IFERROR(-Revenue!$F$24/Y23,"") -> 0
B15: Closing Asset Value | G15: =IF(SUM(G10:G14)=0,"",SUM(G10:G14)) ->  | P15: =IF(SUM(P10:P14)=0,"",SUM(P10:P14)) ->  | V15: =IF(SUM(V10:V14)=0,"",SUM(V10:V14)) ->  | W15: =IF(SUM(W10:W14)=0,"",SUM(W10:W14)) ->  | X15: =IF(SUM(X10:X14)=0,"",SUM(X10:X14)) ->  | Y15: =IF(SUM(Y10:Y14)=0,"",SUM(Y10:Y14)) -> 
B19: Inflation inputs
F20: 2003-04 | G20: =G8 -> 2004-05 | H20: 2005-06 | I20: 2006-07 | J20: 2007-08 | K20: 2008-09 | L20: 2009-10 | M20: 2010-11 | N20: 2011-12 | O20: 2012-13 | P20: 2013-14 | Q20: 2014-15 | R20: 2015-16 | S20: 2016-17 | T20: 2017-18 | U20: =U8 -> 2018-19 | V20: =V8 -> 2019-20 | W20: =W8 -> 2020-21 | X20: =X8 -> 2021-22 | Y20: =Y8 -> 2022-23
B21: March CPI | F21: 78.63994429 | G21: 80.19827298 | H21: 82.09052925 | I21: 84.53933148 | J21: 86.59855153 | K21: 90.27175487 | L21: 92.49793872 | M21: 95.16935933 | N21: 98.34167131 | O21: 99.9 | P21: 102.4 | Q21: 105.4 | R21: 106.8 | S21: 108.2 | T21: 110.5 | U21: 112.6 | V21: 114.1 | W21: 116.6 | X21: 117.9 | Y21: 123.9
B22: Inflation | G22: =(G21/F21)-1 -> 0.01981599434 | H22: 0.02359472588 | I22: 0.02983050847 | J22: 0.02435813035 | K22: 0.04241645244 | L22: 0.02466091245 | M22: 0.02888086643 | N22: 0.03333333333 | O22: 0.01584606678 | P22: 0.02502502503 | Q22: 0.029296875 | R22: 0.01328273245 | S22: 0.01310861423 | T22: 0.02125693161 | U22: 0.01900452489 | V22: 0.01332149201 | W22: 0.02191060473 | X22: 0.01114922813 | Y22: 0.05089058524
B23: Factor | F23: =F21/$X$21 -> 0.6670054647 | G23: =G21/$Y$21 -> 0.6472822678 | H23: 0.6625547155 | I23: 0.6823190595 | J23: 0.6989390761 | K23: 0.7285855922 | L23: 0.7465531777 | M23: 0.7681142803 | N23: 0.7937180897 | O23: 0.8062953995 | P23: 0.8264729621 | Q23: 0.8506860371 | R23: 0.8619854722 | S23: 0.8732849072 | T23: 0.8918482647 | U23: 0.9087974173 | V23: 0.9209039548 | W23: 0.9410815174 | X23: 0.9515738499 | Y23: 1
G26: CHECK
B27: Opening Asset Value | G27: =G10-(1+$X$22)*[2]RollForward!G10 -> -2222646.187 | H27: =H10-(1+$X$22)*[2]RollForward!H10 -> -2245748.013 | I27: =I10-(1+$X$22)*[2]RollForward!I10 -> -2272113.36 | J27: =J10-(1+$X$22)*[2]RollForward!J10 -> -2333095.463 | K27: =K10-(1+$X$22)*[2]RollForward!K10 -> -2399822.544 | L27: =L10-(1+$X$22)*[2]RollForward!L10 -> -2500791.953 | M27: =M10-(1+$X$22)*[2]RollForward!M10 -> -2654899.623 | N27: =N10-(1+$X$22)*[2]RollForward!N10 -> -2800761.462 | O27: =O10-(1+$X$22)*[2]RollForward!O10 -> -2918024.156 | P27: =P10-(1+$X$22)*[2]RollForward!P10 -> -3032015.769 | Q27: =Q10-(1+$X$22)*[2]RollForward!Q10 -> -3196677.236 | R27: =R10-(1+$X$22)*[2]RollForward!R10 -> -3345695.169 | S27: =S10-(1+$X$22)*[2]RollForward!S10 -> -3382671.6 | T27: =T10-(1+$X$22)*[2]RollForward!T10 -> -3434919.312 | U27: =U10-(1+$X$22)*[2]RollForward!U10 -> -3466046.761 | V27: =V10-(1+$X$22)*[2]RollForward!V10 -> -3490283.186
B28: plus Capital Expenditure | G28: =G11-(1+$X$22)*[2]RollForward!G11 -> -106306.8183 | H28: =H11-(1+$X$22)*[2]RollForward!H11 -> -85223.27162 | I28: =I11-(1+$X$22)*[2]RollForward!I11 -> -124226.5426 | J28: =J11-(1+$X$22)*[2]RollForward!J11 -> -136539.7338 | K28: =K11-(1+$X$22)*[2]RollForward!K11 -> -172520.5998 | L28: =L11-(1+$X$22)*[2]RollForward!L11 -> -227941.737 | M28: =M11-(1+$X$22)*[2]RollForward!M11 -> -233473.4423 | N28: =N11-(1+$X$22)*[2]RollForward!N11 -> -202945.089 | O28: =O11-(1+$X$22)*[2]RollForward!O11 -> -195670.6653 | P28: =P11-(1+$X$22)*[2]RollForward!P11 -> -239467.0176 | Q28: =Q11-(1+$X$22)*[2]RollForward!Q11 -> -242962.3153 | R28: =R11-(1+$X$22)*[2]RollForward!R11 -> -156165.032 | S28: =S11-(1+$X$22)*[2]RollForward!S11 -> -176930.9405 | T28: =T11-(1+$X$22)*[2]RollForward!T11 -> -157041.8245 | U28: =U11-(1+$X$22)*[2]RollForward!U11 -> -212127.9468 | V28: =V11-(1+$X$22)*[2]RollForward!V11 -> -262526.6964
B29: less Capital Contributions | G29: =G12-(1+$X$22)*[2]RollForward!G12 -> 45288.21637 | H29: =H12-(1+$X$22)*[2]RollForward!H12 -> 15967.03963 | I29: =I12-(1+$X$22)*[2]RollForward!I12 -> 15279.35353 | J29: =J12-(1+$X$22)*[2]RollForward!J12 -> 18469.17491 | K29: =K12-(1+$X$22)*[2]RollForward!K12 -> 29767.14269 | L29: =L12-(1+$X$22)*[2]RollForward!L12 -> 25674.30035 | M29: =M12-(1+$X$22)*[2]RollForward!M12 -> 27500.62329 | N29: =N12-(1+$X$22)*[2]RollForward!N12 -> 25702.72624 | O29: =O12-(1+$X$22)*[2]RollForward!O12 -> 19515.68359 | P29: =P12-(1+$X$22)*[2]RollForward!P12 -> 23612.82882 | Q29: =Q12-(1+$X$22)*[2]RollForward!Q12 -> 33325.25175 | R29: =R12-(1+$X$22)*[2]RollForward!R12 -> 49874.13131 | S29: =S12-(1+$X$22)*[2]RollForward!S12 -> 47320.6989 | T29: =T12-(1+$X$22)*[2]RollForward!T12 -> 45070.85858 | U29: =U12-(1+$X$22)*[2]RollForward!U12 -> 41866.96695 | V29: =V12-(1+$X$22)*[2]RollForward!V12 -> 33391.18096
B30: less Depreciation (forecast) | G30: =G13-(1+$X$22)*[2]RollForward!G13 -> 37916.77613 | H30: =H13-(1+$X$22)*[2]RollForward!H13 -> 42890.88495 | I30: =I13-(1+$X$22)*[2]RollForward!I13 -> 47965.08522 | J30: =J13-(1+$X$22)*[2]RollForward!J13 -> 51343.47804 | K30: =K13-(1+$X$22)*[2]RollForward!K13 -> 41784.0487 | L30: =L13-(1+$X$22)*[2]RollForward!L13 -> 48159.76622 | M30: =M13-(1+$X$22)*[2]RollForward!M13 -> 54335.66786 | N30: =N13-(1+$X$22)*[2]RollForward!N13 -> 58571.85707 | O30: =O13-(1+$X$22)*[2]RollForward!O13 -> 60561.55558 | P30: =P13-(1+$X$22)*[2]RollForward!P13 -> 49239.05671 | Q30: =Q13-(1+$X$22)*[2]RollForward!Q13 -> 58712.31637 | R30: =R13-(1+$X$22)*[2]RollForward!R13 -> 67470.45962 | S30: =S13-(1+$X$22)*[2]RollForward!S13 -> 74267.10237 | T30: =T13-(1+$X$22)*[2]RollForward!T13 -> 78659.33534 | U30: =U13-(1+$X$22)*[2]RollForward!U13 -> 61546.11029 | V30: =V13-(1+$X$22)*[2]RollForward!V13 -> 69967.633
B31: less Disposals | G31: =G14-(1+$X$22)*[2]RollForward!G14 -> 0 | H31: =H14-(1+$X$22)*[2]RollForward!H14 -> 0 | I31: =I14-(1+$X$22)*[2]RollForward!I14 -> 0 | J31: =J14-(1+$X$22)*[2]RollForward!J14 -> 0 | K31: =K14-(1+$X$22)*[2]RollForward!K14 -> 0 | L31: =L14-(1+$X$22)*[2]RollForward!L14 -> 0 | M31: =M14-(1+$X$22)*[2]RollForward!M14 -> 5775.312733 | N31: =N14-(1+$X$22)*[2]RollForward!N14 -> 1407.811668 | O31: =O14-(1+$X$22)*[2]RollForward!O14 -> 1601.813214 | P31: =P14-(1+$X$22)*[2]RollForward!P14 -> 1953.664728 | Q31: =Q14-(1+$X$22)*[2]RollForward!Q14 -> 1906.81447 | R31: =R14-(1+$X$22)*[2]RollForward!R14 -> 1844.009557 | S31: =S14-(1+$X$22)*[2]RollForward!S14 -> 3095.427768 | T31: =T14-(1+$X$22)*[2]RollForward!T14 -> 2184.181255 | U31: =U14-(1+$X$22)*[2]RollForward!U14 -> 84478.44451 | V31: =V14-(1+$X$22)*[2]RollForward!V14 -> 39293.6865

Sheet Lookups (hidden)
A1: =+'Cover and info'!A1 -> Water Regulatory Accounting Template
A2: Lookup tables
B7: [Year]
B8: 2012-13
B9: =LEFT(B8,4)+1&"-"&RIGHT(B8,2)+1 -> 2013-14
B10: =LEFT(B9,4)+1&"-"&RIGHT(B9,2)+1 -> 2014-15
B11: 2015-16
B12: 2016-17
B13: 2017-18
B14: 2018-19
B15: 2019-20
B16: 2020-21
B17: 2021-22
B18: 2022-23
B19: 2023-24
B20: 2024-25
B21: 2025-26
B22: 2026-27
B23: 2027-28
B24: 2028-29
B25: 2029-30
B28: Business Name | C28: RAV | D28: Abbrev | E28: Regulatory Depreciation
C29: 2004-07-01 | E29: 2004-05 | F29: 2005-06 | G29: 2006-07 | H29: 2007-08 | I29: 2008-09 | J29: 2009-10 | K29: 2010-11 | L29: 2011-12 | M29: 2012-13 | N29: 2013-14 | O29: 2014-15 | P29: 2015-16 | Q29: 2016-17 | R29: 2017-18
B30: [Business] | D30: [ ]
B31: City West Water | C31: 734 | D31: CWW | E31: 18.15201699 | F31: 20.94173391 | G31: 23.63187826 | H31: 25.88571946 | I31: 21.47476865 | J31: 24.47457004 | K31: 26.1696959 | L31: 25.02691442 | M31: 27.51246414 | N31: 37.97353647 | O31: 45.31633401 | P31: 49.73643779 | Q31: 51.72529331 | R31: 53.8832668
B32: South East Water | C32: 1515 | D32: SEW | E32: 25.84483135 | F32: 29.23528319 | G32: 32.69395937 | H32: 34.99673934 | I32: 32.69350668 | J32: 37.68212242 | K32: 42.51439425 | L32: 45.82895769 | M32: 47.38577718 | N32: 42.63578991 | O32: 50.83862595 | P32: 58.42224717 | Q32: 64.30741744 | R32: 68.11062438 | S32: Updated depn values from 2013 price review model
B33: Yarra Valley Water | C33: 1567 | D33: YVW | E33: 37.75575707 | F33: 42.31047985 | G33: 46.72167505 | H33: 41.0950227 | I33: 47.96825264 | J33: 48.07300761 | K33: 45.57793471 | L33: 43.41617308 | M33: 47.20639832 | N33: 88.48727105 | O33: 76.23914417 | P33: 68.65683506 | Q33: 73.77193552 | R33: 76.78843096
B34: Barwon Water | C34: 357 | D34: BW | E34: 8.758121233 | F34: 10.49122768 | G34: 12.40221032 | H34: 14.1711479 | I34: 15.28532771 | J34: 17.81433994 | K34: 20.42468602 | L34: 21.70309538 | M34: 23.73759885 | N34: 28.3871849 | O34: 28.93964821 | P34: 29.87576609 | Q34: 30.8843745 | R34: 31.72638747
B35: Central Highlands Water | C35: 63 | D35: CHW | E35: 1.830921006 | F35: 3.031129109 | G35: 4.342218955 | H35: 5.247658766 | I35: 3.543316285 | J35: 5.185005714 | K35: 6.210216888 | L35: 7.234436229 | M35: 7.630663704 | N35: 12.24161112 | O35: 12.54417765 | P35: 12.81375349 | Q35: 13.18913091 | R35: 13.57470065
B36: Coliban Water | C36: 7 | D36: CW | E36: 0.4547114747 | F36: 0.7709554152 | G36: 1.103841001 | H36: 1.375278687 | I36: 4.9 | J36: 6.75 | K36: 7.77 | L36: 8.25 | M36: 8.59 | N36: 11.22369922 | O36: 12.36774726 | P36: 13.65672337 | Q36: 14.6789737 | R36: 15.57409149
B37: East Gippsland Water | C37: 35 | D37: EGW | E37: 1.418022979 | F37: 1.90314673 | G37: 2.277532138 | H37: 2.674653721 | I37: 3.03 | J37: 3.84 | K37: 4.35 | L37: 4.56 | M37: 4.74 | N37: 5.86274665 | O37: 6.329543867 | P37: 6.78981368 | Q37: 7.153759032 | R37: 7.490805163
B38: Gippsland Water | C38: 156 | D38: CGW | E38: 6.756323843 | F38: 7.555344919 | G38: 8.478429972 | H38: 9.491144143 | I38: 7.166233253 | J38: 8.403569672 | K38: 9.130827655 | L38: 9.941930866 | M38: 10.82483503 | N38: 11.56031271 | O38: 12.46015381 | P38: 13.6057894 | Q38: 14.69003193 | R38: 15.53527716
B39: Goulburn Valley Water | C39: 85 | D39: GVW | E39: 2.875058824 | F39: 3.543653089 | G39: 4.132452599 | H39: 4.608336524 | I39: 5.505419675 | J39: 6.428056038 | K39: 7.036949978 | L39: 7.512707554 | M39: 7.910586342 | N39: 8.628887787 | O39: 9.242288821 | P39: 10.03846476 | Q39: 10.88041135 | R39: 11.61266718
B40: North East Water | C40: 80 | D40: NEW | E40: 2.801772319 | F40: 3.1427367 | G40: 3.455336333 | H40: 3.775759745 | I40: 4.06210164 | J40: 4.864464252 | K40: 5.635176135 | L40: 6.273617698 | M40: 6.683401906 | N40: 6.709931796 | O40: 7.069362837 | P40: 7.46972808 | Q40: 7.897592608 | R40: 8.625017469
B41: South Gippsland Water | C41: 26 | D41: SGW | E41: 1.156116514 | F41: 1.49666185 | G41: 1.724146422 | H41: 1.763549413 | I41: 2.580091349 | J41: 2.737403849 | K41: 2.880060099 | L41: 2.930347001 | M41: 2.954821072 | N41: 3.246229109 | O41: 3.384734444 | P41: 3.461751723 | Q41: 3.525090714 | R41: 3.841441535
B42: Wannon Water | C42: =+SUM(C47:C49) -> 70 | D42: WNW | E42: =+SUM(E47:E49) -> 2.261632489 | F42: =+SUM(F47:F49) -> 2.642544923 | G42: =+SUM(G47:G49) -> 3.035462674 | H42: =+SUM(H47:H49) -> 3.339146367 | I42: 4.484933833 | J42: 4.434093944 | K42: 4.769497427 | L42: 4.861642087 | M42: 5.016635245 | N42: 7.446805681 | O42: 7.940999448 | P42: 8.443564678 | Q42: 8.722517074 | R42: 8.52685574
B43: Western Water | C43: 85 | D43: WW | E43: 5.253884525 | F43: 4.765061582 | G43: 4.641332816 | H43: 5.081147393 | I43: 3.386498987 | J43: 4.06195479 | K43: 4.597712745 | L43: 4.95822774 | M43: 5.220703714 | N43: 4.230996605 | O43: 4.50315342 | P43: 4.873039654 | Q43: 5.573080928 | R43: 6.521172359
B44: Westernport Water | C44: 47 | D44: WPW | E44: 1.315184121 | F44: 1.402561254 | G44: 1.514324811 | H44: 1.707176261 | I44: 1.342132106 | J44: 1.58913118 | K44: 1.770211488 | L44: 1.902546677 | M44: 2.026203477 | N44: 1.690744462 | O44: 1.889155748 | P44: 2.075458317 | Q44: 2.258102294 | R44: 2.350674285
B45: Melbourne Water | C45: 4161 | D45: MW | E45: 73.70600544 | F45: 76.51365737 | G45: 78.93201206 | H45: 82.07783678 | I45: =78.6043194983297+15.4 -> 94.0043195 | J45: =86.0990613744123+17.1 -> 103.1990614 | K45: =95.7460417053801+18.6 -> 114.3460417 | L45: =103.35506172951+20.1 -> 123.4550617 | M45: =111.373578450808+21.7 -> 133.0735785 | N45: 152.0153113 | O45: 173.7471915 | P45: 192.958036 | Q45: 208.291744 | R45: 218.2988321
B47: Old Wannon businesses | C47: 17 | D47: PW | E47: 0.6057748581 | F47: 0.7007809666 | G47: 0.7960244467 | H47: 0.7970304605
C48: 33 | D48: SWW | E48: 1.128946047 | F48: 1.32560232 | G48: 1.534563562 | H48: 1.75606453
C49: 20 | D49: GW | E49: 0.5269115847 | F49: 0.6161616369 | G49: 0.7048746652 | H49: 0.7860513764
